bitfinex/quotes_SOLUSD_20251202
["timestamp","ask_amount","ask_price","bid_price","bid_amount"]
[1764666747475,0.7,127.18,127.16,7.86410821]
[1764666747780,2.56771503,127.17,127.12,19.66541778]
[1764666747981,11.26771503,127.16,127.12,19.66541778]
[1764666748358,0.7,127.15,127.12,19.66541778]
[1764666750584,0.7,127.15,127.11,16.77720163]
[1764666750886,0.7,127.15,127.11,36.44520572]
[1764666751382,0.7,127.15,127.11,36.23520572]
[1764666751879,4.01438208,127.14,127.11,69.76720163]
[1764666752256,0.68,127.13,127.11,69.76720163]
[1764666754562,0.68,127.15,127.11,89.64520572]
[1764666754788,0.68,127.14,127.11,89.43520572]
[1764666755573,0.68,127.14,127.11,89.64520572]
[1764666755776,0.68,127.15,127.11,89.64520572]
[1764666756594,0.68,127.15,127.11,89.43520572]
[1764666757471,4.69438208,127.15,127.11,89.43520572]
[1764666758084,0.68,127.14,127.11,89.43520572]
[1764666762821,4.69438208,127.14,127.11,89.43520572]
[1764666763125,0.68,127.14,127.11,89.43520572]
[1764666763297,0.67,127.13,127.11,89.43520572]
[1764666768709,4.68438208,127.13,127.11,69.76720163]
[1764666769017,12.55041371,127.13,127.09,27.53878233]
[1764666769220,0.67,127.12,127.09,27.53878233]
[1764666770515,4.01438208,127.11,127.08,7.86874271]
[1764666771018,0.67,127.1,127.08,7.86874271]
[1764666772030,0.67,127.1,127.08,27.54138986]
[1764666772692,0.67,127.1,127.08,7.86874271]
[1764666773297,0.67,127.1,127.06,90.27461554]
[1764666773298,0.67,127.1,127.06,61.9]
[1764666773503,0.67,127.12,127.07,4.22438208]
[1764666773918,0.67,127.12,127.08,0.21]
[1764666774924,0.67,127.12,127.08,7.86905886]
[1764666775804,0.67,127.12,127.08,69.76905886]
[1764666776925,8.53660071,127.12,127.08,69.76905886]
[1764666777220,8.53660071,127.12,127.08,61.9]
[1764666777221,4.01438208,127.11,127.08,61.9]
[1764666777393,4.01438208,127.09,127.05,78.208864]
[1764666777897,0.67,127.08,127.05,86.07974749]
[1764666779836,12.55354442,127.08,127.05,78.208864]
[1764666780005,0.67,127.08,127.05,78.208864]
[1764666780204,0.67,127.07,127.05,78.208864]
[1764666780520,0.67,127.07,127.05,16.308864]
[1764666780927,0.67,127.07,127.05,7.87077988]
[1764666781118,8.53861529,127.09,127.05,8.08077988]
[1764666781324,0.67,127.08,127.05,7.87077988]
[1764666781832,4.68438208,127.08,127.05,7.87077988]
[1764666782230,4.01438208,127.08,127.05,7.87077988]
[1764666782432,0.67,127.07,127.05,7.87077988]
[1764666784730,0.67,127.07,127.05,69.77077988]
[1764666786908,11.88299737,127.09,127.05,73.99516196]
[1764666786909,0.67,127.09,127.05,73.99516196]
[1764666787235,0.67,127.08,127.05,78.47077988]
[1764666787405,0.67,127.08,127.05,82.48516196]
[1764666788231,0.67,127.08,127.05,82.69516196]
[1764666788620,0.67,127.08,127.05,82.48516196]
[1764666788820,0.67,127.08,127.05,82.69516196]
[1764666789023,0.67,127.08,127.05,82.48516196]
[1764666789931,0.67,127.08,127.05,78.47077988]
[1764666792111,0.67,127.08,127.05,78.68077988]
[1764666793134,0.67,127.08,127.05,78.47077988]
[1764666794235,0.72,127.1,127.06,4.22438208]
[1764666794439,0.72,127.09,127.06,4.01438208]
[1764666794621,0.72,127.09,127.06,61.9]
[1764666795321,0.72,127.09,127.07,7.86967813]
[1764666797139,0.72,127.09,127.06,62.11]
[1764666797331,0.72,127.09,127.06,61.9]
[1764666798442,0.72,127.09,127.06,69.77026413]
[1764666799040,12.60287516,127.09,127.06,69.77026413]
[1764666799551,0.72,127.08,127.06,69.77026413]
[1764666799920,4.73438208,127.08,127.06,61.9]
[1764666800454,0.72,127.07,127.06,61.9]
[1764666804529,0.72,127.07,127.04,8.07121329]
[1764666807749,4.73438208,127.07,127.04,8.07121329]
[1764666808150,0.72,127.06,127.04,8.07121329]
[1764666809935,4.01438208,127.05,127.04,0.2]
[1764666810131,11.88529904,127.05,127.04,0.2]
[1764666810453,9.42,127.06,127.04,0.2]
[1764666810943,25.11880892,127.1,127.04,8.07148832]
[1764666811149,0.72,127.07,127.04,8.07148832]
[1764666814546,0.72,127.08,127.04,8.28148832]
[1764666815747,0.72,127.11,127.06,2.57257178]
[1764666815944,0.72,127.1,127.05,11.48257178]
[1764666816955,8.5879788,127.1,127.06,7.87029749]
[1764666817453,0.72,127.09,127.06,7.87029749]
[1764666819532,0.72,127.1,127.06,7.87029749]
[1764666819838,0.72,127.1,127.06,27.75604123]
[1764666820758,0.72,127.1,127.06,30.32861301]
[1764666820984,0.72,127.11,127.07,2.78257178]
[1764666821256,0.72,127.11,127.07,11.48257178]
[1764666821758,0.72,127.11,127.07,8.91]
[1764666822642,0.72,127.11,127.08,7.86905886]
[1764666826257,0.72,127.11,127.08,69.76905886]
[1764666826934,3.29257178,127.11,127.08,69.76905886]
[1764666827438,0.69,127.1,127.08,69.76905886]
[1764666827948,3.26257178,127.1,127.08,61.9]
[1764666828461,0.69,127.09,127.08,61.9]
[1764666832145,0.69,127.09,127.07,7.86964172]
[1764666838159,0.69,127.09,127.07,69.76964172]
[1764666850368,7.86753411,127.11,127.07,69.76964172]
[1764666850575,0.69,127.1,127.07,89.65383704]
[1764666851362,0.69,127.1,127.07,89.44383704]
[1764666851563,3.26257178,127.1,127.07,89.44383704]
[1764666851769,0.69,127.1,127.07,89.44383704]
[1764666852071,0.7,127.09,127.07,69.76964172]
[1764666864883,0.7,127.09,127.07,7.86964172]
[1764666865067,3.27257178,127.09,127.06,7.87000494]
[1764666865469,0.7,127.08,127.06,7.87000494]
[1764666866896,0.7,127.08,127.05,27.54703102]
[1764666867263,19.84197885,127.08,127.04,8.07150074]
[1764666867467,2.57257178,127.07,127.04,8.07150074]
[1764666867687,3.27257178,127.07,127.04,8.07150074]
[1764666867890,0.7,127.06,127.04,8.07150074]
[1764666868077,3.27257178,127.06,127.04,8.07150074]
[1764666868275,3.27257178,127.06,127.04,0.2]
[1764666868592,0.7,127.05,127.04,0.2]
[1764666871285,3.27257178,127.05,127.04,0.2]
[1764666871474,19.84348874,127.05,127.04,0.2]
[1764666871674,28.65343366,127.05,127.04,0.2]
[1764666872488,30.10364848,127.05,127.04,0.2]
[1764666881094,16.57091696,127.05,127.04,0.2]
[1764666882001,17.25091696,127.05,127.04,0.2]
[1764666887106,21.27370356,127.05,127.04,0.2]
[1764666887410,30.08364848,127.05,127.04,0.2]
[1764666887710,37.95626914,127.05,127.04,0.2]
[1764666899919,8.80994492,127.04,127.0,0.2]
[1764666900097,4.0227866,127.01,127.0,0.2]
[1764666900293,12.7227866,127.01,127.0,0.2]
[1764666900609,30.08612731,127.01,127.0,0.2]
[1764666901014,26.06334071,127.01,127.0,0.2]
[1764666901219,29.40612731,127.01,127.0,0.2]
[1764666901412,37.49256872,127.01,127.0,0.2]
[1764666901598,30.08612731,127.01,127.0,0.2]
[1764666902499,37.96256872,127.01,127.0,0.2]
[1764666902704,30.08612731,127.01,127.0,0.2]
[1764666902909,16.57339579,127.01,127.0,0.2]
[1764666903114,17.25339579,127.01,127.0,0.2]
[1764666903418,21.27618239,127.01,127.0,0.2]
[1764666904521,8.7,127.01,127.0,0.2]
[1764666905317,8.7,127.01,127.0,0.41]
[1764666905512,8.7,127.01,127.0,0.2]
[1764666905723,11.89586432,127.02,127.0,0.2]
[1764666906702,7.87307772,127.02,127.0,0.41]
[1764666906903,16.57242828,127.03,127.0,0.41]
[1764666907115,16.57242828,127.03,127.01,0.21]
[1764666907799,16.57242828,127.03,127.0,0.41]
[1764666910825,16.57242828,127.03,127.0,8.28400011]
[1764666911330,16.57242828,127.03,127.0,0.41]
[1764666911806,16.57242828,127.03,127.0,8.28397002]
[1764666912531,4.7227866,127.07,127.01,4.2327866]
[1764666912723,13.4227866,127.07,127.02,4.2327866]
[1764666913030,13.4227866,127.07,127.02,0.21]
[1764666913223,0.7,127.06,127.03,0.21]
[1764666913415,8.7,127.07,127.03,0.21]
[1764666913932,4.7227866,127.06,127.02,8.0821903]
[1764666914305,4.0227866,127.06,127.02,8.0821903]
[1764666914626,0.7,127.05,127.02,8.0821903]
[1764666915923,4.7227866,127.05,127.02,8.0821903]
[1764666916104,12.59382027,127.05,127.01,8.08307631]
[1764666917226,32.87872236,127.07,127.02,0.21]
[1764666917403,9.4,127.07,127.02,4.2327866]
[1764666917608,8.7,127.07,127.02,4.2327866]
[1764666917823,9.4,127.07,127.03,0.21]
[1764666918027,0.7,127.06,127.02,0.21]
[1764666918216,4.0227866,127.04,127.0,8.07370621]
[1764666918406,4.0227866,127.01,127.0,0.2]
[1764666918725,21.53273152,127.01,127.0,0.2]
[1764666918900,22.23273152,127.01,127.0,0.2]
[1764666919105,30.10612731,127.01,127.0,0.2]
[1764666922121,8.7,127.01,127.0,0.2]
[1764666922437,7.87296228,127.02,127.0,0.2]
[1764666922734,8.57296228,127.02,127.0,0.2]
[1764666923905,12.59574888,127.02,127.0,0.2]
[1764666925011,4.7227866,127.01,127.0,0.2]
[1764666927643,12.59574888,127.02,127.0,0.2]
[1764666927834,4.7227866,127.01,127.0,0.2]
[1764666928945,11.89574888,127.02,127.0,0.2]
[1764666929244,4.0227866,127.01,127.0,0.2]
[1764666929643,4.7227866,127.01,127.0,0.2]
[1764666930144,12.59618239,127.01,127.0,0.2]
[1764666931142,21.29618239,127.01,127.0,0.2]
[1764666932447,19.84926185,127.01,127.0,0.2]
[1764666933034,28.65920677,127.01,127.0,0.2]
[1764666935034,44.96807077,127.01,127.0,0.2]
[1764666935233,68.64511587,127.01,127.0,0.2]
[1764666942055,66.06924981,127.01,127.0,0.2]
[1764666942263,68.64511587,127.01,127.0,0.2]
[1764666944536,68.64511587,127.01,126.94,0.2]
[1764666944537,8.80994492,126.98,126.94,0.2]
[1764666944743,11.38581098,126.95,126.94,0.2]
[1764666944959,20.08581098,126.95,126.94,0.2]
[1764666945179,23.9039966,126.95,126.94,0.2]
[1764666946048,31.78111357,126.95,126.94,0.2]
[1764666949572,48.08997757,126.95,126.94,0.2]
[1764666951059,44.93179195,126.95,126.94,0.2]
[1764666955164,48.09022694,126.95,126.94,0.2]
[1764666955884,3.15843499,126.95,126.94,0.41]
[1764666956061,10.45257535,126.96,126.94,0.2]
[1764666956260,8.7,126.95,126.94,0.2]
[1764666958087,16.57711697,126.95,126.94,0.41]
[1764666958581,19.81298303,126.95,126.94,0.2]
[1764666959171,19.15298303,126.95,126.94,0.2]
[1764666960699,26.04706189,126.95,126.94,0.2]
[1764666960988,28.62292795,126.95,126.94,0.2]
[1764666962583,25.38706189,126.95,126.94,0.2]
[1764666962801,27.96292795,126.95,126.94,0.2]
[1764666962978,28.62292795,126.95,126.94,0.2]
[1764666963882,27.96292795,126.95,126.94,0.2]
[1764666964195,28.62292795,126.95,126.94,0.2]
[1764666970707,27.96292795,126.95,126.94,0.2]
[1764666971013,0.66,127.03,126.94,30.55788699]
[1764666971177,13.60643963,127.01,126.96,10.4518687]
[1764666971372,7.87388336,127.01,126.96,7.87600264]
[1764666971586,10.44974942,127.01,126.97,0.21]
[1764666972690,11.16974942,127.01,126.97,0.21]
[1764666972887,9.42,127.0,126.97,0.21]
[1764666973079,11.27586606,127.0,126.97,0.21]
[1764666973280,19.15023684,127.0,126.97,0.21]
[1764666974903,11.27586606,127.0,126.97,8.08582871]
[1764666975093,19.14988791,127.0,126.97,0.21]
[1764666977016,2.57586606,126.98,126.95,0.21]
[1764666977195,2.57586606,126.98,126.95,62.11]
[1764666977196,11.27586606,126.98,126.95,62.11]
[1764666978113,19.15124871,126.98,126.95,62.11]
[1764666978314,19.15124871,126.98,126.95,69.98708367]
[1764666980517,19.15124871,126.98,126.95,8.08708367]
[1764666981314,8.7,126.98,126.96,8.08642968]
[1764666981530,8.7,126.98,126.97,0.21]
[1764666982910,8.7,126.98,126.95,7.87711697]
[1764666983118,8.7,126.98,126.96,0.21]
[1764666983615,19.87047643,127.0,126.96,0.21]
[1764666984219,2.57586606,126.99,126.96,8.08598778]
[1764666986023,19.87047643,127.0,126.96,8.08598778]
[1764666986227,16.57461037,127.0,126.97,0.21]
[1764666986539,16.57461037,127.0,126.97,62.11]
[1764666988135,19.87047643,127.0,126.97,61.9]
[1764666988308,19.87047643,127.0,126.97,62.11]
[1764666989827,19.87047643,127.0,126.97,61.9]
[1764666991808,10.45072553,126.99,126.97,61.9]
[1764666992411,11.11072553,126.99,126.97,61.9]
[1764666993637,10.45072553,126.99,126.97,61.9]
[1764666994516,11.90006376,126.99,126.97,61.9]
[1764666994930,4.68520429,126.98,126.97,61.9]
[1764666995310,13.38520429,126.98,126.97,61.9]
[1764666996634,21.26046023,126.98,126.97,61.9]
[1764666997548,30.07040515,126.98,126.97,61.9]
[1764666998535,30.07040515,126.98,126.94,62.1]
[1764666998739,11.90176571,126.96,126.94,62.1]
[1764666998936,20.60176571,126.96,126.94,62.1]
[1764666999113,21.26176571,126.96,126.94,62.1]
[1764667001444,16.57656142,126.96,126.94,0.41]
[1764667001640,16.57656142,126.96,126.95,0.21]
[1764667002838,16.57656142,126.96,126.94,0.41]
[1764667003134,8.7,126.96,126.94,0.41]
[1764667003340,8.7,126.98,126.95,0.21]
[1764667004339,8.7,126.98,126.95,8.08663736]
[1764667006343,9.38,126.98,126.95,8.08663736]
[1764667006532,9.38,126.98,126.95,7.87663736]
[1764667006735,9.38,126.98,126.95,8.08663736]
[1764667007428,9.38,126.98,126.95,69.98663736]
[1764667007615,0.68,126.98,126.95,69.98663736]
[1764667012144,0.68,126.99,126.95,69.98663736]
[1764667012351,0.68,126.98,126.95,69.98663736]
[1764667012645,0.68,126.98,126.95,69.77663736]
[1764667012940,0.68,126.98,126.95,69.98663736]
[1764667014144,0.68,126.98,126.95,69.77663736]
[1764667014646,8.5552652,126.98,126.95,69.77663736]
[1764667014942,8.5552652,126.98,126.95,61.9]
[1764667014943,4.02520429,126.96,126.95,61.9]
[1764667015323,4.70520429,126.96,126.95,61.9]
[1764667017929,12.58170082,126.96,126.95,61.9]
[1764667018228,4.70520429,126.99,126.95,69.98699758]
[1764667018546,13.40520429,126.99,126.95,69.98699758]
[1764667018747,0.68,126.98,126.95,69.98699758]
[1764667018951,9.38,126.99,126.95,69.77699758]
[1764667019131,9.38,126.99,126.96,0.21]
[1764667020346,9.38,126.99,126.96,8.08619977]
[1764667020553,8.7,126.99,126.96,69.98619977]
[1764667020737,0.68,127.02,126.97,4.23520429]
[1764667020922,4.70520429,127.02,126.97,62.11]
[1764667021121,4.70520429,127.02,126.98,0.21]
[1764667021743,12.57825037,127.02,126.98,8.08491244]
[1764667022725,4.70520429,127.01,126.98,8.08491244]
[1764667023230,12.57825037,127.02,126.98,8.08491244]
[1764667023933,8.7,127.03,127.0,4.02520429]
[1764667024131,8.7,127.03,126.99,12.10934258]
[1764667024341,9.38,127.03,127.0,0.21]
[1764667024953,8.7,127.03,127.0,0.21]
[1764667025653,9.38,127.03,127.0,0.21]
[1764667026150,9.38,127.03,127.0,7.873567]
[1764667026372,4.02520429,127.01,126.98,61.9]
[1764667026663,4.02520429,126.99,126.95,7.87669267]
[1764667026868,4.02520429,126.97,126.95,7.87669267]
[1764667027366,4.02520429,126.99,126.96,0.21]
[1764667027565,4.70520429,126.99,126.95,8.08669267]
[1764667027728,4.70520429,126.98,126.95,7.87669267]
[1764667027924,4.02520429,126.97,126.95,7.87669267]
[1764667028129,4.70520429,126.97,126.95,7.87669267]
[1764667028544,0.68,126.96,126.94,8.07745384]
[1764667030160,4.70520429,126.96,126.94,0.2]
[1764667030364,9.38,126.97,126.94,0.2]
[1764667030657,12.58074861,126.98,126.94,8.28751733]
[1764667030842,0.68,126.98,126.94,8.28751733]
[1764667031058,8.7,126.99,126.95,0.21]
[1764667031238,13.40520429,126.99,126.95,0.21]
[1764667031445,4.70520429,126.98,126.94,36.68186111]
[1764667031629,4.02520429,126.97,126.94,0.2]
[1764667031846,4.71520429,126.97,126.94,0.2]
[1764667032057,0.69,126.96,126.94,0.2]
[1764667032245,0.69,126.96,126.94,8.07766616]
[1764667032449,4.02520429,126.97,126.94,8.07766616]
[1764667032655,11.90077886,126.98,126.94,8.28766616]
[1764667032963,4.71520429,126.98,126.94,8.28766616]
[1764667033341,4.02520429,126.98,126.94,8.28766616]
[1764667033536,0.69,126.97,126.94,0.2]
[1764667033763,12.83514921,126.95,126.94,0.2]
[1764667034262,13.52514921,126.95,126.94,0.2]
[1764667034459,21.40226618,126.95,126.94,0.2]
[1764667035541,57.40392261,126.95,126.93,0.2]
[1764667035745,4.71520429,126.94,126.93,0.2]
[1764667036448,20.71350736,126.93,126.92,0.2]
[1764667036648,30.10350736,126.93,126.92,0.2]
[1764667043855,49.79940273,126.93,126.91,0.2]
[1764667044049,13.52514921,126.92,126.91,0.2]
[1764667045873,21.40412809,126.92,126.91,0.2]
[1764667051583,17.3789238,126.92,126.91,0.2]
[1764667051883,21.40412809,126.92,126.91,0.2]
[1764667053352,37.71299209,126.92,126.91,0.2]
[1764667054381,36.26841183,126.92,126.91,0.2]
[1764667059879,8.80994492,126.91,126.87,0.2]
[1764667060072,27.69943295,126.88,126.87,0.2]
[1764667060276,36.39943295,126.88,126.87,0.2]
[1764667060477,37.05943295,126.88,126.87,0.2]
[1764667061693,44.94089574,126.88,126.87,0.2]
[1764667063893,42.36027171,126.88,126.87,0.2]
[1764667064093,44.94089574,126.88,126.87,0.2]
[1764667064779,8.80994492,126.87,126.84,0.2]
[1764667064980,8.80994492,126.87,126.81,0.2]
[1764667064981,8.80994492,126.84,126.81,0.2]
[1764667065187,27.69943295,126.82,126.81,0.2]
[1764667065574,28.36943295,126.82,126.81,0.2]
[1764667065974,36.25462456,126.82,126.81,0.2]
[1764667066883,8.80994492,126.81,126.8,0.2]
[1764667067082,20.76056895,126.81,126.8,0.2]
[1764667067392,20.76056895,126.81,126.79,0.2]
[1764667067598,12.06056895,126.8,126.79,0.2]
[1764667067970,19.94700428,126.8,126.79,0.2]
[1764667068196,26.06638025,126.8,126.79,0.2]
[1764667068375,28.64700428,126.8,126.79,0.2]
[1764667068582,26.06638025,126.8,126.79,0.2]
[1764667068806,28.64700428,126.8,126.79,0.2]
[1764667071381,27.97700428,126.8,126.79,0.2]
[1764667072015,19.94700428,126.8,126.79,0.2]
[1764667072180,28.64700428,126.8,126.79,0.2]
[1764667072613,27.97700428,126.8,126.79,0.2]
[1764667072901,28.64700428,126.8,126.79,0.2]
[1764667074093,19.94700428,126.8,126.79,0.2]
[1764667074294,28.64700428,126.8,126.79,0.2]
[1764667074510,19.27700428,126.8,126.79,0.81]
[1764667074719,27.97700428,126.8,126.79,0.2]
[1764667075500,28.64700428,126.8,126.79,0.2]
[1764667076315,27.97700428,126.8,126.79,0.2]
[1764667079915,2.58062403,126.8,126.79,0.81]
[1764667080212,8.7,126.8,126.79,0.81]
[1764667081896,11.28062403,126.8,126.79,0.81]
[1764667082206,8.7,126.8,126.79,0.81]
[1764667082408,2.58062403,126.83,126.8,7.88643533]
[1764667082608,10.46338809,126.86,126.8,30.79314768]
[1764667082811,11.28062403,126.85,126.81,0.61]
[1764667083111,10.46338809,126.86,126.81,0.61]
[1764667083298,8.7,126.85,126.81,0.61]
[1764667084590,11.28062403,126.86,126.82,7.88519161]
[1764667085098,2.58062403,126.86,126.82,7.88519161]
[1764667085296,8.7,126.85,126.83,0.61]
[1764667085688,11.28062403,126.85,126.83,0.61]
[1764667088111,2.58062403,126.84,126.82,61.9]
[1764667088416,16.58357806,126.85,126.82,62.51]
[1764667088607,2.58062403,126.84,126.82,62.51]
[1764667088916,2.58062403,126.84,126.82,61.9]
[1764667089102,2.58062403,126.84,126.83,0.61]
[1764667090722,10.46466005,126.84,126.82,61.9]
[1764667091027,3.25062403,126.83,126.79,62.71]
[1764667091209,3.25062403,126.83,126.8,0.61]
[1764667091210,2.58062403,126.81,126.8,0.61]
[1764667091726,11.28062403,126.82,126.8,0.61]
[1764667094217,2.58062403,126.81,126.79,0.2]
[1764667094520,2.58062403,126.81,126.79,0.81]
[1764667096311,2.58062403,126.81,126.79,62.71]
[1764667096820,8.7,126.82,126.8,0.61]
[1764667097309,19.16582334,126.82,126.8,0.61]
[1764667098228,16.58519931,126.82,126.8,0.61]
[1764667101748,2.58062403,126.85,126.8,8.49630085]
[1764667101938,8.7,126.86,126.8,90.11238917]
[1764667102178,2.58062403,126.85,126.81,0.61]
[1764667103339,2.58062403,126.85,126.82,7.88519161]
[1764667104319,2.58062403,126.85,126.82,8.49519161]
[1764667105640,3.23062403,126.85,126.82,8.49519161]
[1764667105933,2.58062403,126.85,126.82,8.49519161]
[1764667106533,3.23062403,126.85,126.81,28.20987485]
[1764667106724,3.23062403,126.85,126.82,0.61]
[1764667107239,2.58062403,126.84,126.82,61.9]
[1764667107537,11.28062403,126.83,126.82,61.9]
[1764667107738,11.93062403,126.83,126.79,69.98651218]
[1764667107938,2.58062403,126.82,126.79,70.59651218]
[1764667108330,3.23062403,126.82,126.79,70.59651218]
[1764667108531,19.16534415,126.83,126.8,0.61]
[1764667108732,8.7,126.83,126.8,0.61]
[1764667111150,8.7,126.83,126.8,70.39591361]
[1764667112248,0.66,126.82,126.79,0.2]
[1764667112447,2.58062403,126.8,126.79,0.2]
[1764667112934,0.66,126.81,126.79,0.2]
[1764667113136,2.58062403,126.8,126.79,0.2]
[1764667113533,11.28062403,126.8,126.79,0.2]
[1764667114448,8.7,126.8,126.79,0.2]
[1764667115534,28.63700428,126.8,126.79,0.2]
[1764667115736,28.63700428,126.8,126.74,0.2]
[1764667115737,16.308864,126.77,126.74,0.2]
[1764667116046,11.39056895,126.75,126.74,0.2]
[1764667116456,13.51195785,126.75,126.74,0.2]
[1764667117661,21.4015042,126.75,126.74,0.2]
[1764667117861,4.70201293,126.75,126.74,0.2]
[1764667118037,12.59155928,126.75,126.74,0.2]
[1764667118234,4.04201293,126.76,126.74,0.2]
[1764667118437,8.72,126.76,126.74,0.91]
[1764667118638,12.76201293,126.76,126.74,0.2]
[1764667119957,4.04201293,126.75,126.74,0.2]
[1764667120162,4.70201293,126.75,126.74,0.2]
[1764667120955,0.66,126.75,126.74,0.2]
[1764667121156,4.70201293,126.75,126.74,0.2]
[1764667121743,0.66,126.75,126.74,0.2]
[1764667121941,4.70201293,126.75,126.74,0.2]
[1764667122136,4.04201293,126.75,126.74,0.2]
[1764667122553,4.70201293,126.75,126.74,0.2]
[1764667122762,21.4015042,126.75,126.74,0.2]
[1764667123954,45.167383,126.75,126.67,7.99398537]
[1764667124259,4.04201293,126.69,126.67,7.99398537]
[1764667124478,12.76201293,126.68,126.67,0.1]
[1764667124765,21.57195785,126.68,126.67,0.1]
[1764667124958,22.23195785,126.68,126.67,0.1]
[1764667125567,12.76201293,126.68,126.67,0.1]
[1764667126266,9.38,126.68,126.67,0.1]
[1764667126572,19.98981212,126.68,126.67,0.1]
[1764667128041,37.35366294,126.68,126.67,0.1]
[1764667131256,11.26981212,126.7,126.67,0.82]
[1764667131462,19.98981212,126.7,126.67,0.82]
[1764667133267,27.88250377,126.7,126.67,0.82]
[1764667133868,11.26981212,126.69,126.67,0.82]
[1764667135075,11.26981212,126.68,126.67,0.1]
[1764667135249,19.98981212,126.68,126.67,0.1]
[1764667135762,19.98981212,126.68,126.67,0.82]
[1764667136163,8.72,126.68,126.67,0.1]
[1764667136565,8.72,126.69,126.67,8.71452909]
[1764667136763,11.26981212,126.73,126.67,19.98434121]
[1764667137066,11.26981212,126.72,126.68,0.72]
[1764667138566,8.72,126.73,126.68,11.98981212]
[1764667138774,8.72,126.73,126.69,11.26981212]
[1764667139062,8.72,126.73,126.7,8.61265982]
[1764667139568,27.88061191,126.73,126.7,0.72]
[1764667139774,28.54061191,126.73,126.7,0.72]
[1764667140373,11.26981212,126.72,126.69,7.8930304]
[1764667140561,28.54061191,126.73,126.69,8.6130304]
[1764667141370,28.54061191,126.73,126.68,27.62817919]
[1764667141681,8.72,126.73,126.7,0.72]
[1764667141887,8.72,126.73,126.7,62.62]
[1764667142583,8.72,126.73,126.71,0.72]
[1764667143157,0.03,126.76,126.72,7.89141414]
[1764667143678,0.03,126.76,126.73,11.98981212]
[1764667143856,0.03,126.76,126.74,11.26981212]
[1764667144058,0.03,126.76,126.74,11.98981212]
[1764667144351,0.03,126.76,126.75,0.72]
[1764667145273,0.03,126.76,126.75,8.60954635]
[1764667146280,0.03,126.76,126.75,7.88954635]
[1764667147481,0.03,126.76,126.74,19.72539826]
[1764667147482,0.03,126.76,126.74,27.6155671]
[1764667148197,0.69,126.76,126.74,27.6155671]
[1764667149800,0.69,126.76,126.74,89.5155671]
[1764667149959,4.72945997,126.76,126.74,61.9]
[1764667150165,12.75945997,126.75,126.74,61.9]
[1764667150400,8.72,126.75,126.74,61.9]
[1764667151391,0.03,126.76,126.74,70.51016884]
[1764667151563,0.03,126.76,126.74,70.48016884]
[1764667151758,0.03,126.76,126.75,0.69]
[1764667152472,0.03,126.76,126.74,69.79016884]
[1764667152682,0.03,126.76,126.74,61.9]
[1764667152886,0.03,126.76,126.74,62.59]
[1764667153091,0.03,126.76,126.74,70.48010022]
[1764667158885,0.03,126.76,126.74,69.79010022]
[1764667159085,0.03,126.76,126.74,70.48010022]
[1764667159286,4.75945997,126.76,126.74,61.9]
[1764667159493,4.03945997,126.75,126.74,61.9]
[1764667159791,0.69,126.75,126.71,61.9]
[1764667159973,13.44945997,126.74,126.71,61.9]
[1764667160172,13.44945997,126.74,126.71,62.59]
[1764667160478,9.41,126.74,126.71,62.59]
[1764667160882,9.41,126.74,126.71,70.48167412]
[1764667161480,0.69,126.73,126.71,69.79167412]
[1764667161894,0.69,126.73,126.71,61.9]
[1764667162490,4.72945997,126.73,126.71,61.9]
[1764667162990,4.03945997,126.72,126.7,7.89238797]
[1764667163186,4.72945997,126.72,126.7,7.89238797]
[1764667163569,0.69,126.72,126.7,7.89238797]
[1764667165587,4.72945997,126.72,126.7,7.89238797]